[Event "30th Cracovia Festival-A 2019"]
[Site "Krakow"]
[Date "2019.12.30"]
[Round "5.1"]
[White "Vetoshko, Volodymyr"]
[Black "Tomczak, Jacek"]
[Result "1/2-1/2"]
[ECO "B13"]
[WhiteElo "2511"]
[BlackElo "2605"]
[Annotator "ChessBase"]
[PlyCount "24"]
[EventDate "2019.12.27"]
[EventCountry "POL"]
[SourceTitle "playchess.com"]
[Source "ChessBase"]
[SourceQuality "1"]
[TimeControl "40/5400+30:1800+30"]

1. e4 {[%emt 0:00:00]} c6 {[%emt 0:00:00]} 2. d4 {[%emt 0:00:00]} d5 {[%emt 0:00:00]} 3. exd5 {[%emt 0:00:00]} cxd5 {[%emt 0:00:00]} 4. Bd3 {[%emt 0:00:06]} Nc6 {[%emt 0:00:56]} 5. c3 {[%emt 0:00:11]} Nf6 {[%emt 0:00:46]} 6. Bf4 {[%emt 0:00:21]} Bg4 {[%emt 0:00:37]} 7. Qb3 {[%emt 0:00:08]} Qd7 {[%emt 0:00:46]} 8. Nd2 {[%emt 0:00:19]} e6 {[%emt 0:00:28]} 9. Ngf3 {[%emt 0:01:19]} Bd6 {[%emt 0:00:35]} 10. Bxd6 {[%emt 0:00:19]} Qxd6 {[%emt 0:00:27]} 11. O-O {[%emt 0:00:22]} O-O {[%emt 0:04:25]} 12. Rfe1 {[%emt 0:00:32]} Bxf3 {[%emt 0:11:20]} 1/2-1/2

[Event "30th Cracovia Festival-A 2019"]
[Site "Krakow"]
[Date "2019.12.30"]
[Round "5.2"]
[White "Moroni, Luca Jr"]
[Black "Girish, A. Koushik"]
[Result "1/2-1/2"]
[ECO "D35"]
[WhiteElo "2528"]
[BlackElo "2506"]
[Annotator "ChessBase"]
[PlyCount "106"]
[EventDate "2019.12.27"]
[EventCountry "POL"]
[SourceTitle "playchess.com"]
[Source "ChessBase"]
[SourceQuality "1"]
[TimeControl "40/5400+30:1800+30"]

1. c4 {[%emt 0:00:00]} e6 {[%emt 0:00:03]} 2. Nc3 {[%emt 0:00:00]} d5 {[%emt 0:00:04]} 3. d4 {[%emt 0:00:00]} Nf6 {[%emt 0:01:26]} 4. cxd5 {[%emt 0:00:00]} exd5 {[%emt 0:00:05]} 5. Bg5 {[%emt 0:00:00]} Be7 {[%emt 0:00:07]} 6. e3 {[%emt 0:00:00]} c6 {[%emt 0:00:05]} 7. Bd3 {[%emt 0:00:00]} Nbd7 {[%emt 0:00:14]} 8. Nf3 {[%emt 0:00:23]} Nh5 {[%emt 0:03:53]} 9. Bxe7 {[%emt 0:00:06]} Qxe7 {[%emt 0:00:04]} 10. O-O {[%emt 0:00:04]} g6 {[%emt 0:02:20]} 11. Qb1 {[%emt 0:02:25]} O-O {[%emt 0:05:15]} 12. b4 {[%emt 0:00:16]} Ndf6 {[%emt 0:03:18]} 13. b5 {[%emt 0:00:43]} c5 {[%emt 0:00:25]} 14. dxc5 {[%emt 0:00:30]} Qxc5 {[%emt 0:00:06]} 15. Qb3 {[%emt 0:02:28]} Bg4 {[%emt 0:02:13]} 16. Nd4 {[%emt 0:01:34]} Ng7 {[%emt 0:01:30]} 17. Rfc1 {[%emt 0:07:10]} Qd6 {[%emt 0:01:12]} 18. a3 {[%emt 0:03:39]} Ne6 {[%emt 0:07:41]} 19. Nxe6 {[%emt 0:04:39]} Bxe6 {[%emt 0:08:20]} 20. Qb4 {[%emt 0:05:24]} Qxb4 {[%emt 0:11:52]} 21. axb4 {[%emt 0:01:10]} Nd7 {[%emt 0:00:33]} 22. f4 {[%emt 0:08:27]} Rfc8 {[%emt 0:07:39]} 23. Ne2 {[%emt 0:04:56]} Nb6 {[%emt 0:00:32]} 24. Rxc8+ {[%emt 0:07:25]} Nxc8 {[%emt 0:00:23]} 25. Nd4 {[%emt 0:03:13]} Nd6 {[%emt 0:04:21]} 26. Kf2 {[%emt 0:09:38]} Kf8 {[%emt 0:03:33]} 27. Kf3 {[%emt 0:05:31]} Ke7 {[%emt 0:02:04]} 28. g4 {[%emt 0:03:07]} Bd7 {[%emt 0:01:15]} 29. Rc1 {[%emt 0:07:56]} Rc8 {[%emt 0:09:21]} 30. Rc5 {[%emt 0:01:03]} f6 {[%emt 0:02:01]} 31. h4 {[%emt 0:03:58]} b6 {[%emt 0:07:20]} 32. Rxd5 {[%emt 0:08:52]} Rc3 {[%emt 0:00:23]} 33. Ke2 {[%emt 0:02:17]} Bxg4+ {[%emt 0:00:50]} 34. Kd2 {[%emt 0:00:01]} Ra3 {[%emt 0:05:01]} 35. Nc6+ {[%emt 0:03:51]} Ke6 {[%emt 0:03:47]} 36. e4 {[%emt 0:00:21]} Bh3 {[%emt 0:03:55]} 37. Nd4+ {[%emt 0:00:37]} Ke7 {[%emt 0:00:06]} 38. Nc6+ {[%emt 0:00:05]} Ke6 {[%emt 0:00:05]} 39. Nd4+ {[%emt 0:00:53]} Ke7 {[%emt 0:00:05]} 40. e5 {[%emt 0:00:00]} fxe5 {[%emt 0:00:00]} 41. fxe5 {[%emt 0:06:10]} Nf7 {[%emt 0:07:26]} 42. Bc4 {[%emt 0:07:40]} Rg3 {[%emt 0:08:46]} 43. Nc6+ {[%emt 0:06:26]} Ke8 {[%emt 0:00:06]} 44. Rd4 {[%emt 0:01:18]} Rg4 {[%emt 0:01:47]} 45. Rxg4 {[%emt 0:07:01]} Bxg4 {[%emt 0:00:05]} 46. Ke3 {[%emt 0:01:09]} Nd8 {[%emt 0:02:21]} 47. Nxd8 {[%emt 0:02:47]} Kxd8 {[%emt 0:00:08]} 48. Kf4 {[%emt 0:00:10]} Bf5 {[%emt 0:01:16]} 49. Kg5 {[%emt 0:05:39]} Ke7 {[%emt 0:00:05]} 50. Kh6 {[%emt 0:00:47]} Kf8 {[%emt 0:00:11]} 51. Be2 {[%emt 0:01:58]} Be4 {[%emt 0:01:41]} 52. Bf1 {[%emt 0:00:06]} Bc2 {[%emt 0:01:14]} 53. Bc4 {[%emt 0:00:06]} Bb1 {[%emt 0:00:21]} 1/2-1/2

[Event "30th Cracovia Festival-A 2019"]
[Site "Krakow"]
[Date "2019.12.30"]
[Round "5.3"]
[White "Gumularz, Szymon"]
[Black "Tazbir, Marcin"]
[Result "1/2-1/2"]
[ECO "A22"]
[WhiteElo "2493"]
[BlackElo "2525"]
[Annotator "ChessBase"]
[PlyCount "48"]
[EventDate "2019.12.27"]
[EventCountry "POL"]
[SourceTitle "playchess.com"]
[Source "ChessBase"]
[SourceQuality "1"]
[TimeControl "40/5400+30:1800+30"]

1. c4 {[%emt 0:00:00]} Nf6 {[%emt 0:00:00]} 2. Nc3 {[%emt 0:00:00]} e5 {[%emt 0:00:14]} 3. g3 {[%emt 0:01:39]} Bc5 {[%emt 0:01:31]} 4. Bg2 {[%emt 0:01:37]} Nc6 {[%emt 0:00:19]} 5. e3 {[%emt 0:15:32]} a6 {[%emt 0:01:06]} 6. Nf3 {[%emt 0:05:07]} Ba7 {[%emt 0:00:54]} 7. O-O {[%emt 0:03:23]} O-O {[%emt 0:00:19]} 8. b3 {[%emt 0:00:28]} d6 {[%emt 0:00:44]} 9. Bb2 {[%emt 0:01:06]} h6 {[%emt 0:01:09]} 10. Qc2 {[%emt 0:03:15]} Be6 {[%emt 0:07:26]} 11. Rad1 {[%emt 0:17:45]} Qc8 {[%emt 0:06:19]} 12. Nh4 {[%emt 0:01:01]} g5 {[%emt 0:05:59]} 13. Nf3 {[%emt 0:01:31]} Bg4 {[%emt 0:00:46]} 14. d4 {[%emt 0:22:07]} Re8 {[%emt 0:27:11]} 15. Rd2 {[%emt 0:06:03]} Bf5 {[%emt 0:07:52]} 16. Qd1 {[%emt 0:02:03]} e4 {[%emt 0:00:22]} 17. Ne1 {[%emt 0:00:06]} g4 {[%emt 0:00:13]} 18. Ne2 {[%emt 0:05:33]} d5 {[%emt 0:06:42]} 19. Nf4 {[%emt 0:00:12]} Ne7 {[%emt 0:00:21]} 20. cxd5 {[%emt 0:00:26]} Nexd5 {[%emt 0:00:38]} 21. Nxd5 {[%emt 0:00:17]} Nxd5 {[%emt 0:00:05]} 22. Nd3 {[%emt 0:00:05]} c6 {[%emt 0:05:17]} 23. Nf4 {[%emt 0:00:48]} Qd7 {[%emt 0:02:14]} 24. Nxd5 {[%emt 0:02:31]} cxd5 {[%emt 0:01:36]} 1/2-1/2

[Event "30th Cracovia Festival-A 2019"]
[Site "Krakow"]
[Date "2019.12.30"]
[Round "5.4"]
[White "Kruglyakov, Pavlo"]
[Black "Golubka, Petro"]
[Result "1/2-1/2"]
[ECO "C97"]
[WhiteElo "2357"]
[BlackElo "2479"]
[Annotator "ChessBase"]
[PlyCount "31"]
[EventDate "2019.12.27"]
[EventCountry "POL"]
[SourceTitle "playchess.com"]
[Source "ChessBase"]
[SourceQuality "1"]
[TimeControl "40/5400+30:1800+30"]

1. e4 {[%emt 0:00:00]} e5 {[%emt 0:06:07]} 2. Nf3 {[%emt 0:00:00]} Nc6 {[%emt 0:00:50]} 3. Bb5 {[%emt 0:00:00]} a6 {[%emt 0:03:32]} 4. Ba4 {[%emt 0:00:00]} Nf6 {[%emt 0:00:42]} 5. O-O {[%emt 0:00:15]} Be7 {[%emt 0:05:15]} 6. Re1 {[%emt 0:05:02]} b5 {[%emt 0:01:14]} 7. Bb3 {[%emt 0:00:03]} d6 {[%emt 0:00:14]} 8. c3 {[%emt 0:02:13]} O-O {[%emt 0:00:34]} 9. h3 {[%emt 0:00:23]} Na5 {[%emt 0:07:39]} 10. Bc2 {[%emt 0:01:15]} c5 {[%emt 0:06:36]} 11. d4 {[%emt 0:07:00]} Qc7 {[%emt 0:05:29]} 12. Nbd2 {[%emt 0:04:26]} Bd7 {[%emt 0:02:12]} 13. dxe5 {[%emt 0:14:29]} dxe5 {[%emt 0:01:13]} 14. Nf1 {[%emt 0:00:29]} Rad8 {[%emt 0:01:55]} 15. Qe2 {[%emt 0:04:24]} Be6 {[%emt 0:00:59]} 16. Ne3 {[%emt 0:07:27]} 1/2-1/2

[Event "30th Cracovia Festival-A 2019"]
[Site "Krakow"]
[Date "2019.12.30"]
[Round "5.5"]
[White "Jarmula, Lukasz"]
[Black "Farkas, Gabor"]
[Result "1/2-1/2"]
[ECO "B30"]
[WhiteElo "2466"]
[BlackElo "2357"]
[Annotator "ChessBase"]
[PlyCount "60"]
[EventDate "2019.12.27"]
[EventCountry "POL"]
[SourceTitle "playchess.com"]
[Source "ChessBase"]
[SourceQuality "1"]
[TimeControl "40/5400+30:1800+30"]

1. e4 {[%emt 0:00:00]} c5 {[%emt 0:00:00]} 2. Nf3 {[%emt 0:00:00]} Nc6 {[%emt 0:00:00]} 3. Bb5 {[%emt 0:00:00]} d6 {[%emt 0:00:00]} 4. O-O {[%emt 0:00:27]} Bd7 {[%emt 0:00:19]} 5. Re1 {[%emt 0:00:38]} Nf6 {[%emt 0:00:08]} 6. c3 {[%emt 0:00:14]} a6 {[%emt 0:00:06]} 7. Bf1 {[%emt 0:01:15]} Bg4 {[%emt 0:00:57]} 8. h3 {[%emt 0:06:20]} Bh5 {[%emt 0:04:09]} 9. d4 {[%emt 0:11:47]} cxd4 {[%emt 0:05:39]} 10. cxd4 {[%emt 0:00:11]} e5 {[%emt 0:09:25]} 11. g4 {[%emt 0:00:34]} Bg6 {[%emt 0:00:16]} 12. Nc3 {[%emt 0:00:07]} h6 {[%emt 0:03:17]} 13. d5 {[%emt 0:05:49]} Nb8 {[%emt 0:04:26]} 14. Nh4 {[%emt 0:02:48]} Be7 {[%emt 0:14:57]} 15. Nf5 {[%emt 0:12:21]} Bxf5 {[%emt 0:03:15]} 16. exf5 {[%emt 0:01:14]} Nbd7 {[%emt 0:02:25]} 17. a4 {[%emt 0:02:07]} Qa5 {[%emt 0:02:46]} 18. Rb1 {[%emt 0:04:46]} Qb4 {[%emt 0:06:20]} 19. Bd2 {[%emt 0:04:03]} Qd4 {[%emt 0:02:14]} 20. Be3 {[%emt 0:10:57]} Qxd1 {[%emt 0:01:30]} 21. Rexd1 {[%emt 0:01:30]} Rc8 {[%emt 0:01:23]} 22. Be2 {[%emt 0:03:39]} Nc5 {[%emt 0:10:53]} 23. f3 {[%emt 0:03:56]} Nb3 {[%emt 0:01:11]} 24. h4 {[%emt 0:02:49]} Nd7 {[%emt 0:00:26]} 25. Ne4 {[%emt 0:01:27]} Ndc5 {[%emt 0:00:32]} 26. Nxc5 {[%emt 0:04:28]} Nxc5 {[%emt 0:02:53]} 27. Rbc1 {[%emt 0:00:05]} Kd7 {[%emt 0:03:07]} 28. Bxc5 {[%emt 0:00:09]} Rxc5 {[%emt 0:00:12]} 29. Rxc5 {[%emt 0:00:07]} dxc5 {[%emt 0:00:05]} 30. h5 {[%emt 0:00:20]} Kd6 {[%emt 0:00:59]} 1/2-1/2

[Event "30th Cracovia Festival-A 2019"]
[Site "Krakow"]
[Date "2019.12.30"]
[Round "5.6"]
[White "Evchin, Maxim"]
[Black "Nikitenko, Mihail"]
[Result "1-0"]
[ECO "C07"]
[WhiteElo "2315"]
[BlackElo "2422"]
[Annotator "NA"]
[PlyCount "107"]
[EventDate "2019.12.27"]
[EventCountry "POL"]
[SourceTitle "playchess.com"]
[Source "ChessBase"]
[SourceQuality "1"]
[TimeControl "40/5400+30:1800+30"]

1. e4 {[%emt 0:00:00]} e6 {[%emt 0:00:07]} 2. d4 {[%emt 0:00:00]} d5 {[%emt 0:00:07]} 3. Nd2 {[%emt 0:00:00]} c5 {[%emt 0:00:12]} 4. exd5 {[%emt 0:00:02]} Qxd5 {[%emt 0:00:11]} 5. dxc5 {[%emt 0:00:06]} Qxc5 {[%emt 0:01:43]} 6. Ngf3 {[%emt 0:00:10]} Nf6 {[%emt 0:00:20]} 7. Bd3 {[%emt 0:00:14]} Be7 {[%emt 0:01:35]} 8. O-O {[%emt 0:00:07]} O-O {[%emt 0:00:06]} 9. a4 {[%emt 0:00:06]} Qc7 {[%emt 0:01:06]} 10. a5 {[%emt 0:03:44]} Nc6 {[%emt 0:01:20]} 11. Nc4 {[%emt 0:03:29]} Rd8 {[%emt 0:01:05]} 12. Bd2 {[%emt 0:05:12]} Nb4 {[%emt 0:03:25]} 13. Bxb4 {[%emt 0:02:36]} Bxb4 {[%emt 0:00:05]} 14. Nfe5 {[%emt 0:01:20]} Rd5 {[%emt 0:03:12]} 15. Ra4 {[%emt 0:06:27]} Bxa5 {[%emt 0:04:08]} 16. Qa1 {[%emt 0:00:39]} Bb6 {[%emt 0:04:34]} 17. Nxb6 {[%emt 0:00:12]} Qxb6 {[%emt 0:00:05]} 18. Nc4 {[%emt 0:00:33]} Qc7 {[%emt 0:05:53]} 19. Rxa7 {[%emt 0:01:15]} Rb8 {[%emt 0:01:57]} 20. h3 {[%emt 0:13:23]} Rg5 {[%emt 0:02:55]} 21. f4 {[%emt 0:02:38]} Rd5 {[%emt 0:01:48]} 22. Qe1 {[%emt 0:09:02]} g6 {[%emt 0:07:53]} 23. Qf2 {[%emt 0:02:03]} Bd7 {[%emt 0:03:04]} 24. Ne5 {[%emt 0:06:44]} Bc6 {[%emt 0:03:58]} 25. c4 {[%emt 0:03:52]} Rd6 {[%emt 0:01:19]} 26. c5 {[%emt 0:04:47]} Rd5 {[%emt 0:01:49]} 27. b4 {[%emt 0:00:32]} Rdd8 {[%emt 0:13:29]} 28. b5 {[%emt 0:04:05]} Be4 {[%emt 0:01:23]} 29. b6 {[%emt 0:00:25]} Qc8 {[%emt 0:00:14]} 30. Bb5 {[%emt 0:01:50]} Rd5 {[%emt 0:04:18]} 31. Rc1 {[%emt 0:03:08]} Qf8 {[%emt 0:04:33]} 32. Bf1 {[%emt 0:03:02]} Nd7 {[%emt 0:10:52]} 33. Nxd7 {[%emt 0:04:19]} Rxd7 {[%emt 0:00:04]} 34. c6 {[%emt 0:00:13]} Rd6 {[%emt 0:00:08]} 35. c7 {[%emt 0:01:59]} Rc8 {[%emt 0:00:03]} 36. Rca1 {[%emt 0:05:05]} Bc6 {[%emt 0:03:11]} 37. Qe3 {[%emt 0:00:30]} Qe8 {[%emt 0:03:54]} 38. f5 {[%emt 0:02:14]} e5 {[%emt 0:01:11]} 39. Qa3 {[%emt 0:02:25]} Rd2 {[%emt 0:03:57]} 40. Ra8 {[%emt 0:00:00]} Kg7 {[%emt 0:00:00]} 41. f6+ {[%emt 0:05:15]} Kxf6 {[%emt 0:03:34]} 42. Rxc8 {[%emt 0:00:06]} Qxc8 {[%emt 0:00:03]} 43. Qa8 {[%emt 0:00:06]} Qd7 {[%emt 0:03:42]} 44. c8=Q {[%emt 0:00:29]} Rxg2+ {[%emt 0:00:27]} 45. Bxg2 {[%emt 0:00:43]} Qd4+ {[%emt 0:00:02]} 46. Kh1 {[%emt 0:01:03]} Bxg2+ {[%emt 0:00:10]} 47. Kxg2 {[%emt 0:00:02]} Qd2+ {[%emt 0:00:33]} 48. Kf1 {[%emt 0:00:10]} Qd3+ {[%emt 0:00:03]} 49. Ke1 {[%emt 0:00:12]} Qe3+ {[%emt 0:00:04]} 50. Kd1 {[%emt 0:00:05]} Qd3+ {[%emt 0:00:02]} 51. Kc1 {[%emt 0:00:16]} Qe3+ {[%emt 0:00:05]} 52. Kc2 {[%emt 0:01:20]} Qe2+ {[%emt 0:00:30]} 53. Kb3 {[%emt 0:01:33]} Qb5+ {[%emt 0:00:04]} 54. Kc3 {[%emt 0:00:17]} 1-0

[Event "30th Cracovia Festival-A 2019"]
[Site "Krakow"]
[Date "2019.12.30"]
[Round "5.7"]
[White "Sabuk, Piotr"]
[Black "Kozak, Antoni"]
[Result "1-0"]
[ECO "A45"]
[WhiteElo "2354"]
[BlackElo "2372"]
[Annotator "NA"]
[PlyCount "43"]
[EventDate "2019.12.27"]
[EventCountry "POL"]
[SourceTitle "playchess.com"]
[Source "ChessBase"]
[SourceQuality "1"]
[TimeControl "40/5400+30:1800+30"]

1. d4 {[%emt 0:06:46]} Nf6 {[%emt 0:00:00]} 2. Bf4 {[%emt 0:00:18]} c5 {[%emt 0:08:59]} 3. d5 {[%emt 0:00:30]} Qb6 {[%emt 0:03:50]} 4. Nc3 {[%emt 0:01:39]} Qxb2 {[%emt 0:01:08]} 5. Bd2 {[%emt 0:00:58]} Qb6 {[%emt 0:00:18]} 6. e4 {[%emt 0:01:38]} d6 {[%emt 0:13:03]} 7. f4 {[%emt 0:07:31]} e5 {[%emt 0:00:52]} 8. Nf3 {[%emt 0:02:52]} Nbd7 {[%emt 0:08:05]} 9. Rb1 {[%emt 0:19:10]} Qd8 {[%emt 0:03:16]} 10. fxe5 {[%emt 0:03:52]} dxe5 {[%emt 0:04:34]} 11. Bb5 {[%emt 0:05:13]} a6 {[%emt 0:17:11]} 12. Bxd7+ {[%emt 0:01:27]} Nxd7 {[%emt 0:00:07]} 13. O-O {[%emt 0:01:25]} f6 {[%emt 0:11:29]} 14. Nh4 {[%emt 0:06:40]} g6 {[%emt 0:01:10]} 15. d6 {[%emt 0:06:57]} Bg7 {[%emt 0:00:05]} 16. Nd5 {[%emt 0:00:39]} O-O {[%emt 0:00:05]} 17. Ne7+ {[%emt 0:02:53]} Kf7 {[%emt 0:01:30]} 18. Ba5 {[%emt 0:01:57]} Qxa5 {[%emt 0:00:39]} 19. Qd5+ {[%emt 0:00:21]} Ke8 {[%emt 0:00:01]} 20. Qe6 {[%emt 0:01:17]} Kd8 {[%emt 0:01:20]} 21. Nc6+ {[%emt 0:00:14]} bxc6 {[%emt 0:00:05]} 22. Qe7# {[%emt 0:00:05]} 1-0

[Event "30th Cracovia Festival-A 2019"]
[Site "Krakow"]
[Date "2019.12.30"]
[Round "5.9"]
[White "Grinev, Valeriy"]
[Black "Szustakowski, Antoni"]
[Result "1-0"]
[ECO "A06"]
[WhiteElo "2441"]
[BlackElo "2299"]
[Annotator "NA RC"]
[PlyCount "63"]
[EventDate "2019.12.27"]
[EventCountry "POL"]
[SourceTitle "playchess.com"]
[Source "ChessBase"]
[SourceQuality "1"]
[TimeControl "40/5400+30:1800+30"]

1. Nf3 {[%emt 0:00:00]} d5 {[%emt 0:00:00]} 2. g3 {[%emt 0:00:00]} c6 {[%emt 0:00:00]} 3. Bg2 {[%emt 0:00:00]} Bg4 {[%emt 0:00:00]} 4. O-O {[%emt 0:00:09]} e6 {[%emt 0:00:03]} 5. h3 {[%emt 0:00:08]} Bh5 {[%emt 0:00:08]} 6. d4 {[%emt 0:00:07]} Nd7 {[%emt 0:00:21]} 7. c4 {[%emt 0:00:10]} Bd6 {[%emt 0:02:10]} 8. Qb3 {[%emt 0:01:23]} Qb6 {[%emt 0:01:25]} 9. Nc3 {[%emt 0:00:25]} Ngf6 {[%emt 0:16:45]} 10. c5 {[%emt 0:01:02]} Qxb3 {[%emt 0:00:04]} 11. axb3 {[%emt 0:00:08]} Bc7 {[%emt 0:00:03]} 12. b4 {[%emt 0:00:39]} O-O {[%emt 0:00:23]} 13. b5 {[%emt 0:02:08]} Ne4 {[%emt 0:05:39]} 14. bxc6 {[%emt 0:04:35]} bxc6 {[%emt 0:01:33]} 15. Ra6 {[%emt 0:03:28]} Nb8 {[%emt 0:01:08]} 16. Ra3 {[%emt 0:00:09]} a5 {[%emt 0:01:34]} 17. Bf4 {[%emt 0:06:32]} Bd8 {[%emt 0:03:46]} 18. g4 {[%emt 0:03:49]} Bg6 {[%emt 0:00:16]} 19. Ne5 {[%emt 0:00:10]} Nxc3 {[%emt 0:00:57]} 20. bxc3 {[%emt 0:00:09]} f6 {[%emt 0:01:54]} 21. Nxg6 {[%emt 0:00:11]} hxg6 {[%emt 0:00:04]} 22. c4 {[%emt 0:01:52]} Na6 {[%emt 0:00:49]} 23. cxd5 {[%emt 0:01:00]} exd5 {[%emt 0:00:07]} 24. Bd2 {[%emt 0:01:27]} Nc7 {[%emt 0:00:48]} 25. Rxa5 {[%emt 0:00:34]} Rxa5 {[%emt 0:00:06]} 26. Bxa5 {[%emt 0:00:08]} Nb5 {[%emt 0:00:04]} 27. Bxd8 {[%emt 0:00:09]} Rxd8 {[%emt 0:00:04]} 28. e3 {[%emt 0:00:10]} Kf7 {[%emt 0:03:09]} 29. Ra1 {[%emt 0:02:40]} Ke7 {[%emt 0:00:34]} 30. Bf1 {[%emt 0:00:34]} Nc7 {[%emt 0:00:05]} 31. Ra7 {[%emt 0:00:17]} Kd7 {[%emt 0:00:08]} 32. Bd3 {[%emt 0:00:12]} 1-0

[Event "30th Cracovia Festival-A 2019"]
[Site "Krakow"]
[Date "2019.12.30"]
[Round "5.10"]
[White "Kopylov, Michael"]
[Black "Asiimwe, Daniel K"]
[Result "1/2-1/2"]
[ECO "D10"]
[WhiteElo "2411"]
[BlackElo "2016"]
[Annotator "NA"]
[PlyCount "27"]
[EventDate "2019.12.27"]
[EventCountry "POL"]
[SourceTitle "playchess.com"]
[Source "ChessBase"]
[SourceQuality "1"]
[TimeControl "40/5400+30:1800+30"]

1. d4 {[%emt 0:00:00]} d5 {[%emt 0:00:03]} 2. c4 {[%emt 0:00:09]} c6 {[%emt 0:00:23]} 3. cxd5 {[%emt 0:01:34]} cxd5 {[%emt 0:00:35]} 4. Nc3 {[%emt 0:00:49]} Nf6 {[%emt 0:02:21]} 5. Bf4 {[%emt 0:01:49]} Nc6 {[%emt 0:00:53]} 6. e3 {[%emt 0:01:10]} a6 {[%emt 0:00:46]} 7. Nf3 {[%emt 0:01:23]} Bf5 {[%emt 0:00:49]} 8. Bd3 {[%emt 0:01:26]} Bxd3 {[%emt 0:00:49]} 9. Qxd3 {[%emt 0:00:12]} e6 {[%emt 0:00:26]} 10. O-O {[%emt 0:00:47]} Bd6 {[%emt 0:00:32]} 11. Bxd6 {[%emt 0:02:13]} Qxd6 {[%emt 0:00:15]} 12. Rfc1 {[%emt 0:05:20]} O-O {[%emt 0:00:52]} 13. Na4 {[%emt 0:03:34]} Ne4 {[%emt 0:03:23]} 14. Nc5 {[%emt 0:01:12]} 1/2-1/2

[Event "30th Cracovia Festival-A 2019"]
[Site "Krakow"]
[Date "2019.12.30"]
[Round "5.11"]
[White "Fus, Jakub"]
[Black "Miroshnichenko, Pavel"]
[Result "1-0"]
[ECO "C50"]
[WhiteElo "2363"]
[BlackElo "2270"]
[Annotator "NA"]
[PlyCount "161"]
[EventDate "2019.12.27"]
[EventCountry "POL"]
[SourceTitle "playchess.com"]
[Source "ChessBase"]
[SourceQuality "1"]
[TimeControl "40/5400+30:1800+30"]

1. e4 {[%emt 0:00:00]} e5 {[%emt 0:00:37]} 2. Nf3 {[%emt 0:00:00]} Nc6 {[%emt 0:00:05]} 3. Bc4 {[%emt 0:00:14]} Bc5 {[%emt 0:00:27]} 4. O-O {[%emt 0:00:22]} Nf6 {[%emt 0:00:04]} 5. d3 {[%emt 0:00:22]} O-O {[%emt 0:00:27]} 6. a4 {[%emt 0:00:24]} a6 {[%emt 0:02:27]} 7. Nbd2 {[%emt 0:00:40]} d6 {[%emt 0:00:47]} 8. c3 {[%emt 0:00:39]} Ba7 {[%emt 0:00:26]} 9. h3 {[%emt 0:00:47]} Ne7 {[%emt 0:00:37]} 10. Re1 {[%emt 0:02:04]} Ng6 {[%emt 0:00:21]} 11. b4 {[%emt 0:02:42]} Nf4 {[%emt 0:05:43]} 12. Nf1 {[%emt 0:03:25]} N6h5 {[%emt 0:01:41]} 13. Be3 {[%emt 0:07:27]} Be6 {[%emt 0:03:31]} 14. Bxa7 {[%emt 0:01:53]} Rxa7 {[%emt 0:03:09]} 15. Ne3 {[%emt 0:16:54]} Qf6 {[%emt 0:08:01]} 16. Kh2 {[%emt 0:15:54]} Qh6 {[%emt 0:06:35]} 17. Bxe6 {[%emt 0:05:08]} Qxe6 {[%emt 0:05:29]} 18. Ng1 {[%emt 0:05:49]} Nf6 {[%emt 0:10:51]} 19. g3 {[%emt 0:01:51]} Ng6 {[%emt 0:00:11]} 20. a5 {[%emt 0:08:42]} d5 {[%emt 0:02:45]} 21. Qc2 {[%emt 0:01:26]} Qc6 {[%emt 0:05:36]} 22. f3 {[%emt 0:05:50]} Raa8 {[%emt 0:03:28]} 23. Red1 {[%emt 0:03:37]} Rad8 {[%emt 0:01:30]} 24. c4 {[%emt 0:00:13]} d4 {[%emt 0:01:23]} 25. Nf5 {[%emt 0:00:56]} Rfe8 {[%emt 0:01:19]} 26. Ne2 {[%emt 0:00:49]} Nh5 {[%emt 0:03:06]} 27. Qd2 {[%emt 0:01:38]} h6 {[%emt 0:08:26]} 28. Rg1 {[%emt 0:00:55]} Kh7 {[%emt 0:02:39]} 29. Rg2 {[%emt 0:00:16]} Ne7 {[%emt 0:04:24]} 30. Nxe7 {[%emt 0:02:26]} Rxe7 {[%emt 0:00:09]} 31. g4 {[%emt 0:01:44]} Nf6 {[%emt 0:01:25]} 32. f4 {[%emt 0:01:10]} exf4 {[%emt 0:00:37]} 33. Nxf4 {[%emt 0:00:09]} Qd6 {[%emt 0:06:30]} 34. Kh1 {[%emt 0:00:23]} Qe5 {[%emt 0:02:26]} 35. Rag1 {[%emt 0:01:04]} g5 {[%emt 0:00:21]} 36. Ne2 {[%emt 0:00:15]} Ne8 {[%emt 0:00:36]} 37. Rf1 {[%emt 0:00:44]} Rd6 {[%emt 0:02:46]} 38. Ng3 {[%emt 0:00:22]} Ng7 {[%emt 0:00:13]} 39. Nf5 {[%emt 0:05:24]} Nxf5 {[%emt 0:01:52]} 40. Rxf5 {[%emt 0:00:00]} Qg7 {[%emt 0:00:00]} 41. Qf2 {[%emt 0:00:57]} Kg8 {[%emt 0:05:45]} 42. Qg3 {[%emt 0:02:14]} Rf6 {[%emt 0:02:35]} 43. Rgf2 {[%emt 0:01:39]} Rxf5 {[%emt 0:00:33]} 44. Rxf5 {[%emt 0:00:13]} Rd7 {[%emt 0:06:29]} 45. Qf2 {[%emt 0:02:16]} Qf8 {[%emt 0:00:17]} 46. c5 {[%emt 0:01:06]} Qe7 {[%emt 0:00:08]} 47. Kg2 {[%emt 0:11:18]} Kg7 {[%emt 0:01:11]} 48. h4 {[%emt 0:02:03]} c6 {[%emt 0:02:13]} 49. Qd2 {[%emt 0:03:57]} gxh4 {[%emt 0:06:14]} 50. Kh3 {[%emt 0:01:34]} Rd8 {[%emt 0:03:30]} 51. Qf4 {[%emt 0:01:29]} Qe6 {[%emt 0:04:14]} 52. Kxh4 {[%emt 0:02:41]} Qe7+ {[%emt 0:01:57]} 53. Kg3 {[%emt 0:00:28]} Qe6 {[%emt 0:00:57]} 54. Kh4 {[%emt 0:00:30]} Qe7+ {[%emt 0:00:06]} 55. Kh3 {[%emt 0:00:04]} Qe6 {[%emt 0:00:33]} 56. Rh5 {[%emt 0:01:37]} Rg8 {[%emt 0:04:10]} 57. e5 {[%emt 0:03:28]} Kh7 {[%emt 0:00:52]} 58. Qxd4 {[%emt 0:01:17]} Rg6 {[%emt 0:00:21]} 59. Rf5 {[%emt 0:01:09]} Qb3 {[%emt 0:01:30]} 60. Qe4 {[%emt 0:02:03]} Kg7 {[%emt 0:00:46]} 61. Qf3 {[%emt 0:00:16]} Kg8 {[%emt 0:00:24]} 62. d4 {[%emt 0:02:14]} Qc4 {[%emt 0:01:08]} 63. d5 {[%emt 0:00:11]} Qxd5 {[%emt 0:00:48]} 64. Qxd5 {[%emt 0:00:04]} cxd5 {[%emt 0:00:02]} 65. Rf6 {[%emt 0:00:10]} Rg5 {[%emt 0:00:08]} 66. c6 {[%emt 0:01:02]} bxc6 {[%emt 0:00:15]} 67. Rxc6 {[%emt 0:00:04]} h5 {[%emt 0:02:46]} 68. gxh5 {[%emt 0:00:35]} Rxe5 {[%emt 0:00:05]} 69. Rxa6 {[%emt 0:00:09]} Re3+ {[%emt 0:00:36]} 70. Kg2 {[%emt 0:00:04]} Rb3 {[%emt 0:00:09]} 71. Rb6 {[%emt 0:00:05]} d4 {[%emt 0:00:12]} 72. a6 {[%emt 0:01:18]} Kg7 {[%emt 0:00:20]} 73. Kf2 {[%emt 0:00:38]} Rb2+ {[%emt 0:00:04]} 74. Ke1 {[%emt 0:00:47]} f5 {[%emt 0:00:12]} 75. b5 {[%emt 0:00:03]} Ra2 {[%emt 0:00:04]} 76. Rb7+ {[%emt 0:00:52]} Kh6 {[%emt 0:00:03]} 77. a7 {[%emt 0:00:06]} f4 {[%emt 0:00:09]} 78. b6 {[%emt 0:00:10]} f3 {[%emt 0:00:33]} 79. Rf7 {[%emt 0:00:11]} Ra1+ {[%emt 0:00:39]} 80. Kd2 {[%emt 0:00:09]} Ra6 {[%emt 0:00:21]} 81. Rxf3 {[%emt 0:00:18]} 1-0